fUST/lending_fUST_20240329
["ID","MTS","AMOUNT","RATE_DAILY","PERIOD"]
[320891845,1711668653046,-500.0,0.0005452,120]
[320891846,1711668653056,-500.0,0.0005452,120]
[320891847,1711668653065,-232.11,0.0005452,120]
[320891848,1711668653075,-500.0,0.0005452,120]
[320891849,1711668653085,-751.22,0.0005452,21]
[320891850,1711668653096,-500.0,0.0005452,120]
[320891851,1711668653106,-500.0,0.0005452,120]
[320891852,1711668653116,-598.25,0.0005452,120]
[320891853,1711668653127,-500.0,0.0005452,120]
[320891854,1711668653137,-500.0,0.0005452,120]
[320891855,1711668653146,-500.0,0.0005452,120]
[320891856,1711668653157,-500.0,0.0005452,120]
[320891857,1711668653167,-500.0,0.0005452,120]
[320891858,1711668653177,-500.0,0.0005452,120]
[320891859,1711668653187,-500.0,0.0005452,120]
[320891860,1711668653198,-500.0,0.0005452,120]
[320891861,1711668653207,-500.0,0.0005452,120]
[320891862,1711668653217,-506.46,0.0005452,120]
[320891863,1711668653227,-500.0,0.0005452,120]
[320891864,1711668653237,-500.0,0.0005452,120]
[320891865,1711668653247,-635.57,0.0005452,120]
[320891866,1711668653257,-600.50995042,0.0005452,120]
[320891867,1711668653266,-500.0,0.0005452,120]
[320891868,1711668653276,-500.0,0.0005452,120]
[320891869,1711668653286,-500.0,0.0005452,120]
[320891870,1711668653296,-500.0,0.0005452,120]
[320891871,1711668653305,-500.0,0.0005452,120]
[320891872,1711668653314,-500.0,0.0005452,120]
[320891873,1711668653323,-500.0,0.0005452,120]
[320891874,1711668653332,-500.0,0.0005452,120]
[320891875,1711668653341,-166.60098048,0.0005452,120]
[320891876,1711668653351,-500.000001,0.0005452,120]
[320891877,1711668653361,-500.0,0.0005452,120]
[320891878,1711668653371,-683.83,0.0005452,120]
[320891879,1711668653382,-500.0,0.0005452,120]
[320891880,1711668653393,-500.0,0.0005452,120]
[320891881,1711668653403,-500.0,0.0005452,120]
[320891882,1711668653414,-539.86,0.0005452,120]
[320891883,1711668653423,-167.224876,0.000546,2]
[320891884,1711668653433,-1680.3542953,0.0005467,120]
[320891885,1711668653444,-2456.08,0.00054679,7]
[320891886,1711668653453,-111577.73257224,0.0005468,120]
[320891887,1711668653463,-9974.48,0.00054688,120]
[320891888,1711668653474,-9974.48,0.00054688,120]
[320891889,1711668653484,-49377.23818202,0.00054689,4]
[320891890,1711668653494,-9974.48,0.00054689,120]
[320891891,1711668653504,-9974.48,0.00054699,120]
[320891892,1711668653514,-8646.084508,0.000547,15]
[320891893,1711668653525,-9974.48,0.0005479,120]
[320891894,1711668653535,-9974.48,0.0005479,120]
[320891895,1711668653545,-9974.48,0.0005479,120]
[320891896,1711668653556,-9974.48,0.0005479,120]
[320891897,1711668653566,-9974.48,0.0005479,120]
[320891898,1711668653576,-9974.48,0.0005479,120]
[320891899,1711668653586,-9974.70003722,0.0005479,120]
[320891900,1711668653595,-95755.50265395,0.00054791,4]
[320891901,1711668653606,-155.35135468,0.00054792,4]
[320891902,1711668653617,-540.7557211,0.00054792,4]
[320891903,1711668653627,-885.06558708,0.00054792,4]
[320891904,1711668653637,-150.0,0.00054792,60]
[320891905,1711668653648,-298.7280365,0.00054793,4]
[320891906,1711668653659,-500.0,0.00054794,120]
[320891907,1711668653669,-500.0,0.00054794,120]
[320891908,1711668653678,-500.0,0.00054794,120]
[320891909,1711668653688,-229.98529816,0.00054794,120]
[320891910,1711668653699,-10000.0,0.00054794,120]
[320891911,1711668653709,-10000.0,0.00054794,120]
[320891912,1711668653719,-10000.0,0.00054794,120]
[320891913,1711668653729,-10000.0,0.00054794,120]
[320891914,1711668653743,-500.0,0.00054794,10]
[320891915,1711668653753,-500.0,0.00054794,10]
[320891916,1711668653763,-500.0,0.00054794,10]
[320891917,1711668653774,-500.0,0.00054794,10]
[320891918,1711668653784,-1098.39,0.00054794,2]
[320891919,1711668653794,-500.0,0.00054794,120]
[320891920,1711668653805,-150.0,0.00054799,60]
[320891921,1711668653816,-200.0,0.00055,120]
[320891922,1711668653827,-150.98490151,0.00055014,2]
[320891923,1711668653837,-1098.39,0.00055068,5]
[320891924,1711668653906,-500.0,0.00055342,120]
[320891925,1711668653916,-500.0,0.00055342,120]
[320891926,1711668653925,-500.0,0.00055342,120]
[320891927,1711668653935,-500.0,0.00055342,120]
[320891928,1711668653945,-500.0,0.00055342,120]
[320891929,1711668653955,-500.0,0.00055342,120]
[320891930,1711668653965,-500.0,0.00055342,120]
[320891931,1711668653976,-500.0,0.00055342,120]
[320891932,1711668653986,-555.7,0.00055342,120]
[320891933,1711668653995,-327.32704762,0.00055342,120]
[320891934,1711668654004,-500.0,0.00055342,120]
[320891935,1711668654015,-500.0,0.00055342,120]
[320891936,1711668654025,-500.0,0.00055342,120]
[320891937,1711668654035,-500.0,0.00055342,120]
[320891938,1711668654046,-500.0,0.00055342,120]
[320891939,1711668654055,-500.0,0.00055342,120]
[320891940,1711668654065,-500.0,0.00055342,120]
[320891941,1711668654075,-500.0,0.00055342,120]
[320891942,1711668654084,-500.0,0.00055342,120]
[320891943,1711668654094,-500.0,0.00055342,120]
[320891944,1711668654104,-514.97,0.00055342,120]
[320891945,1711668654113,-500.0,0.00055342,120]
[320891946,1711668654123,-500.0,0.00055342,120]
[320891947,1711668654132,-500.0,0.00055342,120]
[320891948,1711668654142,-500.0,0.00055342,2]
[320891949,1711668654152,-500.0,0.00055342,120]
[320891950,1711668654161,-943.32,0.00055342,120]
[320891951,1711668654172,-500.0,0.00055342,120]
[320891952,1711668654182,-500.0,0.00055342,120]
[320891953,1711668654191,-500.0,0.00055342,120]
[320891954,1711668654200,-500.0,0.00055342,120]
[320891955,1711668654211,-500.0,0.00055342,120]
[320891956,1711668654222,-500.0,0.00055342,120]
[320891957,1711668654232,-500.0,0.00055342,120]
[320891958,1711668654241,-500.0,0.00055342,120]
[320891959,1711668654250,-500.0,0.00055342,120]
[320891960,1711668654259,-500.0,0.00055342,120]
[320891961,1711668654271,-500.0,0.00055342,120]
[320891962,1711668654280,-500.0,0.00055342,120]
[320891963,1711668654291,-516.57,0.00055342,120]
[320891964,1711668654301,-702.48,0.00055342,120]
[320891965,1711668654311,-281.68,0.00055342,120]
[320891966,1711668654322,-500.0,0.00055342,120]
[320891967,1711668654331,-500.0,0.00055342,120]
[320891968,1711668654341,-500.0,0.00055342,120]
[320891969,1711668654351,-3981.95,0.00055342,120]
[320891970,1711668654361,-3418.65,0.00055342,90]
[320891971,1711668654372,-500.0,0.00055342,120]
[320891972,1711668654382,-500.0,0.00055342,120]
[320891973,1711668654393,-500.0,0.00055342,120]
[320891974,1711668654403,-500.0,0.00055342,120]
[320891975,1711668654414,-500.0,0.00055342,120]
[320891976,1711668654424,-500.0,0.00055342,120]
[320891977,1711668654434,-751.22,0.00055342,21]
[320891978,1711668654445,-500.0,0.00055342,120]
[320891979,1711668654455,-500.0,0.00055342,120]
[320891980,1711668654465,-500.0,0.00055342,120]
[320891981,1711668654476,-500.0,0.00055342,120]
[320891982,1711668654487,-500.0,0.00055342,120]
[320891983,1711668654497,-500.0,0.00055342,120]
[320891984,1711668654506,-500.0,0.00055342,120]
[320891985,1711668654516,-506.46,0.00055342,120]
[320891986,1711668654525,-500.0,0.00055342,120]
[320891987,1711668654535,-500.0,0.00055342,120]
[320891988,1711668654545,-635.57,0.00055342,120]
[320891989,1711668654556,-500.0,0.00055342,10]
[320891990,1711668654566,-500.0,0.00055342,120]
[320891991,1711668654577,-500.0,0.00055342,120]
[320891992,1711668654588,-500.0,0.00055342,120]
[320891993,1711668654599,-500.0,0.00055342,120]
[320891994,1711668654609,-500.0,0.00055342,120]
[320891995,1711668654620,-1098.39,0.00055342,8]
[320891996,1711668654630,-500.0,0.00055342,120]
[320891997,1711668654640,-500.0,0.00055342,120]
[320891998,1711668654650,-683.83,0.00055342,120]
[320891999,1711668654660,-500.0,0.00055342,120]
[320892000,1711668654671,-500.0,0.00055342,120]
[320892001,1711668654680,-539.86,0.00055342,120]
[320892002,1711668654690,-1098.39,0.00055616,11]
[320892003,1711668654701,-150.0,0.00055792,60]
[320892004,1711668654711,-1098.39,0.0005589,14]
[320892005,1711668654723,-301.96980302,0.00055939,4]
[320892006,1711668654735,-500.0,0.00056164,120]
[320892007,1711668654745,-500.0,0.00056164,120]
[320892008,1711668654757,-504.34918039,0.00056164,120]
[320892009,1711668654767,-500.0,0.00056164,120]
[320892010,1711668654778,-516.20784841,0.00056164,120]
[320892011,1711668654788,-500.0,0.00056164,120]
[320892012,1711668654798,-500.0,0.00056164,120]
[320892013,1711668654808,-500.0,0.00056164,120]
[320892014,1711668654818,-500.0,0.00056164,120]
[320892015,1711668654827,-500.0,0.00056164,120]
[320892016,1711668654838,-500.0,0.00056164,120]
[320892017,1711668654847,-500.0,0.00056164,120]
[320892018,1711668654857,-500.0,0.00056164,120]
[320892019,1711668654867,-426.65,0.00056164,120]
[320892020,1711668654878,-357.25,0.00056164,120]
[320892021,1711668654889,-500.0,0.00056164,120]
[320892022,1711668654900,-500.0,0.00056164,120]
[320892023,1711668654909,-514.97,0.00056164,120]
[320892024,1711668654920,-500.0,0.00056164,120]
[320892025,1711668654929,-500.0,0.00056164,120]
[320892026,1711668654938,-500.0,0.00056164,120]
[320892027,1711668654948,-392.55,0.00056164,2]
[320892028,1711668654957,-500.0,0.00056164,120]
[320892029,1711668654966,-943.32,0.00056164,120]
[320892030,1711668654977,-234.09732646,0.00056164,120]
[320892031,1711668654986,-500.0,0.00056164,120]
[320892032,1711668654995,-500.0,0.00056164,120]
[320892033,1711668655004,-500.0,0.00056164,120]
[320892034,1711668655013,-500.0,0.00056164,120]
[320892035,1711668655022,-500.0,0.00056164,120]
[320892036,1711668655032,-409.36,0.00056164,120]
[320892037,1711668655042,-502.22249172,0.00056164,120]
[320892038,1711668655051,-500.0,0.00056164,120]
[320892039,1711668655060,-500.0,0.00056164,120]
[320892040,1711668655069,-500.0,0.00056164,120]
[320892041,1711668655079,-500.0,0.00056164,120]
[320892042,1711668655088,-516.57,0.00056164,120]
[320892043,1711668655097,-702.48,0.00056164,120]
[320892044,1711668655107,-500.0,0.00056164,120]
[320892045,1711668655116,-500.0,0.00056164,120]
[320892046,1711668655125,-3981.95,0.00056164,120]
[320892047,1711668655134,-3418.65,0.00056164,90]
[320892048,1711668655143,-500.0,0.00056164,120]
[320892049,1711668655152,-500.0,0.00056164,120]
[320892050,1711668655162,-411.74,0.00056164,120]
[320892051,1711668655224,-500.0,0.00056164,120]
[320892052,1711668655233,-500.0,0.00056164,120]
[320892053,1711668655243,-751.22,0.00056164,21]
[320892054,1711668655253,-500.0,0.00056164,120]
[320892055,1711668655263,-241.33,0.00056164,120]
[320892056,1711668655274,-183.23,0.00056164,120]
[320892057,1711668655284,-506.46,0.00056164,120]
[320892058,1711668655295,-500.0,0.00056164,120]
[320892059,1711668655304,-635.57,0.00056164,120]
[320892060,1711668655315,-500.0,0.00056164,10]
[320892061,1711668655324,-500.0,0.00056164,120]
[320892062,1711668655335,-500.0,0.00056164,120]
[320892063,1711668655345,-526.73,0.00056164,120]
[320892064,1711668655354,-500.0,0.00056164,120]
[320892065,1711668655365,-500.0,0.00056164,120]
[320892066,1711668655376,-1098.39,0.00056164,17]
[320892067,1711668655387,-500.0,0.00056164,120]
[320892068,1711668655398,-510.84943726,0.00056164,120]
[320892069,1711668655408,-683.83,0.00056164,120]
[320892070,1711668655418,-500.0,0.00056164,120]
[320892071,1711668655427,-500.0,0.00056164,120]
[320892072,1711668655438,-539.86,0.00056164,120]
[320892073,1711668655448,-1098.39,0.00056438,120]
[320892074,1711668655459,-500.0,0.00056564,40]
[320892075,1711668655469,-1098.39,0.00056712,120]
[320892076,1711668655481,-150.0,0.00056792,60]
[320892077,1711668655492,-603.93960604,0.00056879,7]
[320892078,1711668655502,-500.0,0.00056986,120]
[320892079,1711668655511,-264.23010512,0.00056986,120]
[320892080,1711668655521,-500.0,0.00056986,120]
[320892081,1711668655530,-363.55,0.00056986,120]
[320892082,1711668655539,-500.0,0.00056986,120]
[320892083,1711668655549,-500.0,0.00056986,120]
[320892084,1711668655559,-500.0,0.00056986,120]
[320892085,1711668655571,-500.0,0.00056986,120]
[320892086,1711668655580,-500.0,0.00056986,120]
[320892087,1711668655590,-500.0,0.00056986,120]
[320892088,1711668655599,-514.97,0.00056986,120]
[320892089,1711668655609,-500.0,0.00056986,120]
[320892090,1711668655618,-500.0,0.00056986,120]
[320892091,1711668655628,-500.0,0.00056986,120]
[320892092,1711668655640,-943.32,0.00056986,120]
[320892093,1711668655651,-500.0,0.00056986,120]
[320892094,1711668655661,-500.0,0.00056986,120]
[320892095,1711668655671,-500.0,0.00056986,120]
[320892096,1711668655681,-500.0,0.00056986,120]
[320892097,1711668655691,-500.0,0.00056986,120]
[320892098,1711668655700,-500.0,0.00056986,120]
[320892099,1711668655709,-500.0,0.00056986,120]
[320892100,1711668655719,-500.0,0.00056986,120]
[320892101,1711668655729,-516.57,0.00056986,120]
[320892102,1711668655744,-702.48,0.00056986,120]
[320892103,1711668655753,-500.0,0.00056986,120]
[320892104,1711668655764,-3981.95,0.00056986,120]
[320892105,1711668655775,-3418.65,0.00056986,90]
[320892106,1711668655785,-200.4,0.00056986,120]
[320892107,1711668655795,-500.0,0.00056986,120]
[320892108,1711668655804,-500.8,0.00056986,120]
[320892109,1711668655813,-500.0,0.00056986,120]
[320892110,1711668655822,-751.22,0.00056986,21]
[320892111,1711668655832,-500.0,0.00056986,120]
[320892112,1711668655843,-506.46,0.00056986,120]
[320892113,1711668655853,-500.0,0.00056986,120]
[320892114,1711668655863,-635.57,0.00056986,120]
[320892115,1711668655874,-500.0,0.00056986,10]
[320892116,1711668655885,-318.9,0.00056986,120]
[320892117,1711668655894,-500.0,0.00056986,120]
[320892118,1711668655905,-500.0,0.00056986,120]
[320892119,1711668655915,-500.0,0.00056986,120]
[320892120,1711668655924,-1098.39,0.00056986,120]
[320892121,1711668655933,-500.0,0.00056986,120]
[320892122,1711668655942,-683.83,0.00056986,120]
[320892123,1711668655951,-500.0,0.00056986,120]
[320892124,1711668655960,-500.0,0.00056986,120]
[320892125,1711668655969,-539.86,0.00056986,120]
[320892126,1711668655978,-1098.39,0.0005726,120]
[320892127,1711668655987,-5000.0,0.00057534,120]
[320892128,1711668655996,-5000.0,0.00057534,120]
[320892129,1711668656005,-5000.0,0.00057534,120]
[320892130,1711668656014,-4392.82523242,0.00057534,120]
[320892131,1711668656023,-1098.39,0.00057534,120]
[320892132,1711668656033,-62481.1614399,0.00057534,2]
[320892133,1711668656042,-500.0,0.00057808,120]
[320892134,1711668656051,-282.0799575,0.00057808,120]
[320892135,1711668656060,-500.0,0.00057808,120]
[320892136,1711668656069,-500.0,0.00057808,120]
[320892137,1711668656078,-500.0,0.00057808,120]
[320892138,1711668656088,-500.0,0.00057808,120]
[320892139,1711668656097,-633.17,0.00057808,120]
[320892140,1711668656106,-514.97,0.00057808,120]
[320892141,1711668656115,-500.0,0.00057808,120]
[320892142,1711668656125,-500.0,0.00057808,120]
[320892143,1711668656134,-943.32,0.00057808,120]
[320892144,1711668656143,-500.0,0.00057808,120]
[320892145,1711668656152,-500.0,0.00057808,120]
[320892146,1711668656162,-500.0,0.00057808,120]
[320892147,1711668656171,-289.5821252,0.00057808,120]
[320892148,1711668656181,-500.0,0.00057808,120]
[320892149,1711668656191,-500.0,0.00057808,120]
[320892150,1711668656201,-500.0,0.00057808,120]
[320892151,1711668656211,-500.0,0.00057808,120]
[320892152,1711668656220,-516.57,0.00057808,120]
[320892153,1711668656230,-702.48,0.00057808,120]
[320892154,1711668656239,-500.0,0.00057808,120]
[320892155,1711668656248,-3418.65,0.00057808,90]
[320892156,1711668656257,-3981.95,0.00057808,120]
[320892157,1711668656266,-500.0,0.00057808,120]
[320892158,1711668656277,-500.0,0.00057808,120]
[320892159,1711668656288,-751.22,0.00057808,21]
[320892160,1711668656298,-500.0,0.00057808,120]
[320892161,1711668656309,-506.46,0.00057808,120]
[320892162,1711668656320,-500.0,0.00057808,120]
[320892163,1711668656330,-635.57,0.00057808,120]
[320892164,1711668656340,-326.80921276,0.00057808,10]
[320892165,1711668656350,-500.0,0.00057808,120]
[320892166,1711668656360,-500.0,0.00057808,120]
[320892167,1711668656423,-500.0,0.00057808,120]
[320892168,1711668656434,-1098.39,0.00057808,120]
[320892169,1711668656444,-476.07231922,0.00057808,120]
[320892170,1711668656454,-683.83,0.00057808,120]
[320892171,1711668656465,-541.47394694,0.00057808,120]
[320892172,1711668656475,-539.86,0.00057808,120]
[320892173,1711668656486,-10130.11291117,0.00058,120]
[320892174,1711668656495,-1098.39,0.00058082,120]
[320892175,1711668656506,-1098.39,0.00058356,120]
[320892176,1711668656516,-500.0,0.0005863,120]
[320892177,1711668656525,-500.0,0.0005863,120]
[320892178,1711668656535,-500.0,0.0005863,120]
[320892179,1711668656545,-500.0,0.0005863,120]
[320892180,1711668656556,-500.0,0.0005863,120]
[320892181,1711668656567,-514.97,0.0005863,120]
[320892182,1711668656579,-500.0,0.0005863,120]
[320892183,1711668656590,-500.0,0.0005863,120]
[320892184,1711668656600,-943.32,0.0005863,120]
[320892185,1711668656610,-500.0,0.0005863,120]
[320892186,1711668656621,-500.0,0.0005863,120]
[320892187,1711668656631,-500.0,0.0005863,120]
[320892188,1711668656641,-500.0,0.0005863,120]
[320892189,1711668656651,-500.0,0.0005863,120]
[320892190,1711668656661,-500.0,0.0005863,120]
[320892191,1711668656672,-501.14964162,0.0005863,120]
[320892192,1711668656681,-516.57,0.0005863,120]
[320892193,1711668656691,-702.48,0.0005863,120]
[320892194,1711668656702,-269.24,0.0005863,120]
[320892195,1711668656713,-3418.65,0.0005863,90]
[320892196,1711668656724,-3981.95,0.0005863,120]
[320892197,1711668656736,-500.0,0.0005863,120]
[320892198,1711668656746,-500.0,0.0005863,120]
[320892199,1711668656757,-751.22,0.0005863,21]
[320892200,1711668656767,-497.44,0.0005863,120]
[320892201,1711668656779,-506.46,0.0005863,120]
[320892202,1711668656789,-500.0,0.0005863,120]
[320892203,1711668656800,-635.57,0.0005863,120]
[320892204,1711668656810,-500.0,0.0005863,120]
[320892205,1711668656820,-500.0,0.0005863,120]
[320892206,1711668656831,-500.0,0.0005863,120]
[320892207,1711668656841,-1098.39,0.0005863,120]
[320892208,1711668656851,-683.83,0.0005863,120]
[320892209,1711668656862,-539.86,0.0005863,120]
[320892210,1711668656873,-1098.39,0.00058904,120]
[320892211,1711668656883,-500.0,0.00059,120]
[320892212,1711668656894,-500.0,0.00059,120]
[320892213,1711668656905,-500.0,0.00059,120]
[320892214,1711668656915,-500.0,0.00059,120]
[320892215,1711668656924,-500.0,0.00059,120]
[320892216,1711668656934,-500.0,0.00059,120]
[320892217,1711668656944,-500.0,0.00059,120]
[320892218,1711668656954,-500.0,0.00059,120]
[320892219,1711668656963,-500.0,0.00059,120]
[320892220,1711668656973,-500.0,0.00059,120]
[320892221,1711668656984,-500.0,0.00059,120]
[320892222,1711668657005,-500.0,0.00059,120]
[320892223,1711668657022,-500.0,0.00059,120]
[320892224,1711668657036,-500.0,0.00059,120]
[320892225,1711668657051,-234.14,0.00059,120]
[320892226,1711668657068,-500.0,0.00059,120]
[320892227,1711668657084,-500.0,0.00059,120]
[320892228,1711668657098,-500.0,0.00059,120]
[320892229,1711668657113,-500.0,0.00059,120]
[320892230,1711668657128,-635.63,0.00059,120]
[320892231,1711668657145,-224.06,0.00059,120]
[320892232,1711668657156,-1098.39,0.00059178,120]
[320892233,1711668657173,-1000.0,0.00059339,30]
[320892234,1711668657189,-1000.0,0.00059359,30]
[320892235,1711668657202,-1000.0,0.00059404,30]
[320892236,1711668657218,-1000.0,0.00059408,30]
[320892237,1711668657232,-195.24433895,0.0005941,30]
[320892238,1711668657251,-1000.0,0.00059411,30]
[320892239,1711668657267,-1000.0,0.00059413,30]
[320892240,1711668657281,-1000.0,0.00059424,30]
[320892241,1711668657294,-1000.0,0.00059433,30]
[320892242,1711668657311,-1000.0,0.00059439,30]
[320892243,1711668657325,-500.0,0.00059452,120]
[320892244,1711668657340,-235.69766966,0.00059452,120]
[320892245,1711668657352,-500.0,0.00059452,120]
[320892246,1711668657367,-500.0,0.00059452,120]
[320892247,1711668657380,-500.0,0.00059452,120]
[320892248,1711668657393,-514.97,0.00059452,120]
[320892249,1711668657406,-500.0,0.00059452,120]
[320892250,1711668657420,-500.0,0.00059452,120]
[320892251,1711668657434,-943.32,0.00059452,120]
[320892252,1711668657447,-500.0,0.00059452,120]
[320892253,1711668657461,-500.0,0.00059452,120]
[320892254,1711668657476,-500.0,0.00059452,120]
[320892255,1711668657490,-500.0,0.00059452,120]
[320892256,1711668657503,-500.0,0.00059452,120]
[320892257,1711668657516,-500.0,0.00059452,120]
[320892258,1711668657529,-516.57,0.00059452,120]
[320892259,1711668657542,-702.48,0.00059452,120]
[320892260,1711668657556,-3981.95,0.00059452,120]
[320892261,1711668657569,-3418.65,0.00059452,90]
[320892262,1711668657583,-500.0,0.00059452,120]
[320892263,1711668657597,-500.0,0.00059452,120]
[320892264,1711668657612,-751.22,0.00059452,21]
[320892265,1711668657627,-506.46,0.00059452,120]
[320892266,1711668657640,-542.58,0.00059452,120]
[320892267,1711668657653,-635.57,0.00059452,120]
[320892268,1711668657667,-500.0,0.00059452,120]
[320892269,1711668657680,-500.0,0.00059452,120]
[320892270,1711668657693,-500.0,0.00059452,120]
[320892271,1711668657707,-1098.39,0.00059452,120]
[320892272,1711668657718,-683.83,0.00059452,120]
[320892273,1711668657730,-539.86,0.00059452,120]
[320892274,1711668657827,-1000.0,0.00059479,30]
[320892275,1711668657843,-1000.0,0.00059488,30]
[320892276,1711668657853,-1007.42339146,0.00059498,30]
[320892277,1711668657864,-1000.0,0.00059533,30]
[320892278,1711668657875,-1000.0,0.00059543,30]
[320892279,1711668657885,-1000.0,0.00059582,30]
[320892280,1711668657895,-207.784,0.00059586,120]
[320892281,1711668657905,-1098.39,0.00059726,120]
[320892282,1711668657914,-1098.39,0.00059999,120]
[320892283,1711668657924,-6125.01144115,0.0006,120]
[320892284,1711668657995,-31525.1871571,0.0006,120]
[320892285,1711668658008,-715.4,0.0006,120]
[320892288,1711669756098,-359.79078531,0.00029287,2]
[320892289,1711669756119,-1574.70395347,0.00029287,2]
[320892290,1711669756139,-334.00517292,0.00029287,2]
[320892291,1711669756159,-302.82079948,0.00029288,2]
[320892292,1711669756179,-154.98450155,0.00029288,2]
[320892293,1711669756198,-626.45664891,0.00029288,2]
[320892294,1711669756219,-1858.62237315,0.00029288,2]
[320892295,1711669756238,-1611.4399762,0.00029289,2]
[320892296,1711669756258,-154.98450155,0.00029289,2]
[320892297,1711669756278,-210.52208177,0.00029289,2]
[320892298,1711669756297,-160.99421832,0.0002929,2]
[320892299,1711669756317,-742.18630817,0.0002929,2]
[320892300,1711669770442,865.76850171,0.0002719,2]
[320892340,1711669832857,-1574.70395347,0.00029281,2]
[320892341,1711669832867,-302.82079948,0.00029281,2]
[320892342,1711669832876,-626.45664891,0.00029281,2]
[320892344,1711669832885,-210.52208177,0.00029281,2]
[320892345,1711669832894,-281.29945541,0.00029281,2]
[320892346,1711669832903,-154.98450155,0.00029282,2]
[320892347,1711669832912,-1044.74347552,0.00029282,2]
[320892348,1711669832921,-780.91830104,0.00029282,2]
[320892349,1711669832930,-334.00517292,0.00029282,2]
[320892350,1711669832939,-1568.2435482,0.00029282,2]
[320892351,1711669832948,-932.29248123,0.00029283,2]
[320892352,1711669832957,-1302.33191571,0.00029283,2]
[320892353,1711669832966,-5547.25657352,0.00029284,2]
[320892354,1711669832975,-47408.66723651,0.00029284,2]
[320892355,1711669832984,-271.17349342,0.00029285,2]
[320892356,1711669832993,-3446.43692103,0.00029285,2]
[320892357,1711669833003,-155.01549845,0.00029288,2]
[320892358,1711669833011,-1611.4399762,0.00029288,2]
[320892359,1711669833021,-359.79078531,0.00029288,2]
[320892360,1711669833030,-154.98450155,0.00029288,2]
[320892361,1711669833039,-302.46060216,0.00029289,2]
[320892362,1711669833049,-166.666666,0.00029296,2]
[320892363,1711669833059,-166.666666,0.00030095,2]
[320892364,1711669833069,-1090.755418,0.00030137,120]
[320892365,1711669833078,-164.16231406,0.000307,5]
[320892366,1711669833087,-400.0,0.000308,2]
[320892367,1711669833097,-171.295321,0.00030809,2]
[320892368,1711669833106,-166.666666,0.00030894,2]
[320892369,1711669833115,-281.7045139,0.00031084,2]
[320892370,1711669833125,-166.666666,0.00031693,2]
[320892371,1711669833134,-391.57854493,0.00031979,2]
[320892372,1711669833162,-653.97869834,0.00031979,2]
[320892373,1711669833171,-697.28827623,0.00032088,2]
[320892374,1711669833186,-7078.0,0.00032088,2]
[320892384,1711669838762,-1858.62237315,0.0002928,2]
[320892385,1711669838772,-1611.4399762,0.0002928,2]
[320892386,1711669838782,-160.15475827,0.00032088,2]
[320892387,1711669838791,-865.76850171,0.0003219,2]
[320892388,1711669838800,-500.0,0.00032244,2]
[320892389,1711669838809,-500.0,0.00032244,2]
[320892390,1711669838819,-500.0,0.00032244,2]
[320892392,1711669838828,-500.0,0.00032244,2]
[320892394,1711669838837,-500.0,0.00032244,2]
[320892395,1711669838846,-455.59735854,0.00032244,2]
[320892396,1711669838855,-500.0,0.00032244,2]
[320892397,1711669838864,-500.0,0.00032244,2]